bitfinex/quotes_BTCUSD_20241222
["timestamp","ask_amount","ask_price","bid_price","bid_amount"]
[1734843683704,0.09104509,96181.0,96180.0,0.1013084]
[1734843684890,0.29898609,96181.0,96180.0,0.1013084]
[1734843685102,0.29898609,96181.0,96179.0,0.003]
[1734843685425,0.10006087,96180.0,96179.0,0.1043084]
[1734843685626,0.11919474,96180.0,96179.0,0.1043084]
[1734843685965,0.11919474,96180.0,96179.0,0.1013084]
[1734843686180,0.11919474,96180.0,96179.0,0.1023084]
[1734843686367,0.11919474,96180.0,96179.0,0.1013084]
[1734843686793,0.11919474,96180.0,96179.0,0.1023084]
[1734843688126,0.11919474,96180.0,96179.0,0.1013084]
[1734843688360,0.11919474,96180.0,96179.0,0.1023084]
[1734843690432,0.20049474,96180.0,96179.0,0.1023084]
[1734843690632,0.24679474,96180.0,96179.0,0.1023084]
[1734843690843,0.24549501,96180.0,96179.0,0.1023084]
[1734843691211,0.24549501,96180.0,96179.0,0.001]
[1734843692042,0.09104509,96157.0,96156.0,0.00013627]
[1734843692335,0.09876114,96157.0,96156.0,0.10144467]
[1734843692619,0.30675414,96157.0,96156.0,0.10144467]
[1734843694466,0.09104509,96158.0,96156.0,0.10144467]
[1734843694765,0.207965,96170.0,96157.0,0.1243084]
[1734843695007,0.09104509,96169.0,96157.0,0.1243084]
[1734843695183,0.09104509,96172.0,96161.0,0.230984]
[1734843695402,0.09104509,96169.0,96163.0,0.023]
[1734843695618,0.09104509,96169.0,96165.0,0.023]
[1734843695790,0.09104509,96169.0,96167.0,0.023]
[1734843696028,0.09104509,96169.0,96168.0,0.1243084]
[1734843696238,0.09104509,96179.0,96169.0,0.023]
[1734843696404,0.09104509,96179.0,96162.0,0.44033081]
[1734843696405,0.01913904,96188.0,96178.0,0.023]
[1734843696607,0.09104509,96182.0,96180.0,0.023]
[1734843696813,0.09104509,96182.0,96180.0,0.1243084]
[1734843697010,0.09104509,96194.0,96180.0,0.3322514]
[1734843697209,0.0001716,96199.0,96180.0,0.5650514]
[1734843697414,0.0001716,96199.0,96198.0,0.230904]
[1734843697625,0.0001716,96199.0,96198.0,0.4822124]
[1734843697834,0.08635708,96200.0,96199.0,0.40535081]
[1734843698034,0.08635708,96200.0,96199.0,0.50665921]
[1734843698236,0.08635708,96200.0,96199.0,0.35665921]
[1734843698459,0.207862,96218.0,96199.0,0.35665921]
[1734843698460,0.20788,96209.0,96199.0,0.35665921]
[1734843698677,0.20788,96209.0,96188.0,0.15]
[1734843698678,0.09104509,96206.0,96201.0,0.023]
[1734843698882,0.09104509,96204.0,96203.0,0.023]
[1734843699091,0.09104509,96204.0,96203.0,0.1243084]
[1734843700346,0.09104509,96212.0,96203.0,0.1243084]
[1734843700599,0.09104509,96212.0,96205.0,0.023]
[1734843700829,0.09104509,96210.0,96207.0,0.023]
[1734843701052,0.09104509,96212.0,96209.0,0.023]
[1734843701270,0.09104509,96212.0,96210.0,0.1013084]
[1734843701465,0.09304509,96212.0,96210.0,0.1013084]
[1734843702107,0.09104509,96211.0,96210.0,0.1243084]
[1734843702728,0.09104509,96211.0,96210.0,0.1253084]
[1734843702933,0.09104509,96211.0,96210.0,0.1243084]
[1734843703384,0.09104509,96211.0,96210.0,0.1253084]
[1734843704159,0.09104509,96211.0,96210.0,0.1023084]
[1734843704425,0.09876114,96211.0,96210.0,0.1023084]
[1734843704722,0.10006035,96211.0,96210.0,0.001]
[1734843705066,0.09104509,96198.0,96192.0,0.023]
[1734843705273,0.09104509,96198.0,96194.0,0.023]
[1734843705471,0.09104509,96198.0,96196.0,0.023]
[1734843705692,0.09104509,96198.0,96197.0,0.1243084]
[1734843706096,0.09104509,96202.0,96197.0,0.1243084]
[1734843706311,0.09104509,96200.0,96198.0,0.023]
[1734843706520,0.00129934,96209.0,96199.0,0.1013084]
[1734843706521,0.09104509,96202.0,96199.0,0.1013084]
[1734843706730,0.00129934,96209.0,96200.0,0.023]
[1734843706941,0.09120861,96215.0,96208.0,0.207882]
[1734843707240,0.09120861,96215.0,96191.0,0.0828]
[1734843707241,0.00016352,96215.0,96209.0,0.1243084]
[1734843707481,0.00016352,96215.0,96203.0,0.207893]
[1734843707482,0.00016352,96215.0,96211.0,0.023]
[1734843707706,0.00016352,96215.0,96214.0,0.207869]
[1734843707965,0.00016352,96215.0,96214.0,0.4821774]
[1734843709375,0.00016352,96215.0,96214.0,0.4871774]
[1734843710544,0.00016352,96215.0,96214.0,0.4891774]
[1734843711610,0.00016352,96215.0,96214.0,0.2813084]
[1734843711971,0.09120861,96215.0,96214.0,0.1083084]
[1734843712592,0.09120861,96215.0,96214.0,0.1033084]
[1734843712975,0.09120861,96215.0,96214.0,0.1053084]
[1734843713177,0.09120861,96215.0,96214.0,0.1033084]
[1734843713556,0.09120861,96215.0,96214.0,0.1043084]
[1734843713760,0.09120861,96215.0,96214.0,0.1023084]
[1734843714267,0.09120861,96215.0,96214.0,0.1033084]
[1734843714930,0.09120861,96215.0,96214.0,0.1023084]
[1734843715126,0.00016352,96215.0,96214.0,0.1243084]
[1734843715331,0.00016352,96215.0,96214.0,0.2763084]
[1734843715544,0.00016352,96215.0,96214.0,0.3512084]
[1734843715888,0.00016352,96215.0,96214.0,0.3532084]
[1734843716115,0.00016352,96215.0,96214.0,0.3618444]
[1734843716321,0.00016352,96215.0,96214.0,0.3668444]
[1734843716724,0.00016352,96215.0,96214.0,0.59419521]
[1734843716924,0.00016352,96215.0,96214.0,0.60119521]
[1734843717553,0.00016352,96215.0,96214.0,0.59919521]
[1734843717775,0.00016352,96215.0,96214.0,0.60119521]
[1734843721161,0.0001718,96237.0,96226.0,0.09228395]
[1734843721364,0.00071847,96237.0,96236.0,0.58355921]
[1734843721589,0.00071847,96237.0,96236.0,0.79138121]
[1734843722220,0.00071847,96237.0,96236.0,0.71448121]
[1734843722835,0.00071847,96237.0,96236.0,0.72048121]
[1734843723118,0.00071847,96237.0,96236.0,0.71448121]
[1734843723319,0.00071847,96237.0,96236.0,0.72348121]
[1734843724090,0.00067847,96237.0,96236.0,0.72748121]
[1734843724350,0.00067847,96237.0,96236.0,0.71848121]
[1734843724551,0.00067847,96237.0,96236.0,0.71448121]
[1734843724759,0.00067847,96237.0,96236.0,0.72648121]
[1734843724985,0.00067847,96237.0,96236.0,0.71748121]
[1734843725132,0.00067847,96237.0,96236.0,0.72648121]
[1734843725545,0.00067847,96237.0,96236.0,0.71748121]
[1734843725815,0.00067847,96237.0,96236.0,0.72548121]
[1734843726019,0.00067847,96237.0,96236.0,0.71448121]
[1734843726308,0.00067847,96237.0,96236.0,0.72348121]
[1734843726919,0.00067847,96237.0,96236.0,0.71948121]
[1734843727128,0.00067847,96237.0,96236.0,0.72048121]
[1734843727265,0.00067847,96237.0,96236.0,0.72943612]
[1734843727650,0.00067847,96237.0,96236.0,0.72343612]
[1734843727856,0.00067847,96237.0,96236.0,0.73143612]
[1734843728061,0.00067847,96237.0,96236.0,0.72543612]
[1734843728498,0.00067847,96237.0,96236.0,0.73143612]
[1734843729154,0.00067847,96237.0,96236.0,0.72943612]
[1734843729386,0.00067847,96237.0,96236.0,0.73143612]
[1734843729675,0.00067847,96237.0,96236.0,0.72248121]
[1734843730111,0.00067847,96237.0,96236.0,0.73143612]
[1734843730648,0.00067847,96237.0,96236.0,0.82372007]
[1734843731460,0.00067847,96237.0,96236.0,0.81476516]
[1734843731666,0.00067847,96237.0,96236.0,0.82372007]
[1734843732972,0.00067847,96237.0,96236.0,0.86892007]
[1734843733182,0.00067847,96237.0,96236.0,0.36465921]
[1734843733357,0.00067847,96237.0,96236.0,0.1093084]
[1734843733558,0.00839452,96237.0,96236.0,0.1093084]
[1734843733781,0.09943961,96237.0,96236.0,0.1093084]
[1734843734149,0.09943961,96237.0,96236.0,0.006]
[1734843734345,0.00771605,96219.0,96209.0,0.23235081]
[1734843734553,0.00771605,96219.0,96216.0,0.1013084]
[1734843734554,0.09876114,96217.0,96216.0,0.1013084]
[1734843734746,0.09104509,96217.0,96216.0,0.1013084]
[1734843735868,0.1789603,96217.0,96216.0,0.1083084]
[1734843736031,0.1789603,96217.0,96216.0,0.007]
[1734843736232,0.30662614,96216.0,96199.0,8.56e-05]
[1734843737525,0.30862614,96216.0,96199.0,8.56e-05]
[1734843738711,0.30662614,96216.0,96199.0,8.56e-05]
[1734843739081,0.30762614,96216.0,96199.0,8.56e-05]
[1734843739688,0.30662614,96216.0,96199.0,8.56e-05]
[1734843740486,0.30762614,96216.0,96199.0,8.56e-05]
[1734843741620,0.1,96229.0,96199.0,8.56e-05]
[1734843741621,0.0789,96232.0,96215.0,0.274394]
[1734843741744,0.0789,96232.0,96223.0,0.207848]
[1734843741949,0.00771605,96229.0,96224.0,0.1013084]
[1734843742546,0.207846,96226.0,96224.0,0.1013084]
[1734843742798,0.00771605,96219.0,96215.0,0.23243641]
[1734843742998,0.00771605,96219.0,96216.0,0.1013084]
[1734843743234,0.09104509,96217.0,96216.0,0.1013084]
[1734843744800,0.09104509,96217.0,96216.0,0.1033084]
[1734843745243,0.09104509,96217.0,96216.0,0.1013084]
[1734843745481,0.09104509,96217.0,96216.0,0.1053084]
[1734843746054,0.09104509,96217.0,96216.0,0.1063084]
[1734843746597,0.09104509,96217.0,96216.0,0.1053084]
[1734843746811,0.09104509,96217.0,96216.0,0.1063084]
[1734843746985,0.09104509,96217.0,96216.0,0.1023084]
[1734843747357,0.09104509,96217.0,96216.0,0.1063084]
[1734843747560,0.09104509,96217.0,96216.0,0.1023084]
[1734843747961,0.09104509,96217.0,96216.0,0.1073084]
[1734843748160,0.09104509,96217.0,96216.0,0.1013084]
[1734843748366,0.30662614,96216.0,96215.0,8.56e-05]
[1734843750436,0.38552614,96216.0,96215.0,8.56e-05]
[1734843751608,0.38752614,96216.0,96215.0,8.56e-05]
[1734843752637,0.38552614,96216.0,96215.0,8.56e-05]
[1734843752833,0.38652614,96216.0,96215.0,8.56e-05]
[1734843753072,0.78202614,96216.0,96215.0,8.56e-05]
[1734843753277,0.38666114,96200.0,96199.0,8.56e-05]
[1734843753477,0.43216114,96200.0,96199.0,8.56e-05]
[1734843754568,0.43216114,96200.0,96199.0,0.0010856]
[1734843754778,0.43716114,96200.0,96199.0,0.00114797]
[1734843754978,0.43716114,96200.0,96199.0,0.00016352]
[1734843755170,0.43716114,96200.0,96199.0,0.00116352]
[1734843755387,0.43216114,96200.0,96199.0,0.00116352]
[1734843755634,0.43716114,96200.0,96199.0,0.00116352]
[1734843755955,0.43216114,96200.0,96199.0,0.00116352]
[1734843756360,0.43716114,96200.0,96199.0,0.00016352]
[1734843756772,0.44016114,96200.0,96199.0,0.00116352]
[1734843756975,0.43716114,96200.0,96199.0,0.00016352]
[1734843757583,0.43216114,96200.0,96199.0,0.00016352]
[1734843757870,0.43916114,96200.0,96199.0,0.00016352]
[1734843758062,0.43616114,96200.0,96199.0,0.00016352]
[1734843758274,0.43216114,96200.0,96199.0,0.00016352]
[1734843758477,0.68516114,96200.0,96199.0,0.00016352]
[1734843758679,0.68916114,96200.0,96199.0,0.00016352]
[1734843759113,0.68516114,96200.0,96199.0,0.00016352]
[1734843759526,0.68916114,96200.0,96199.0,0.00016352]
[1734843759675,0.68616114,96200.0,96199.0,0.00016352]
[1734843759880,0.68816114,96200.0,96199.0,0.00016352]
[1734843760348,0.68616114,96200.0,96199.0,0.00016352]
[1734843760552,0.68416114,96200.0,96199.0,0.00016352]
[1734843760756,0.68216114,96200.0,96199.0,0.00016352]
[1734843760962,0.68616114,96200.0,96199.0,0.00016352]
[1734843761165,0.88946954,96200.0,96199.0,5.2e-07]
[1734843761367,0.88546954,96200.0,96199.0,5.2e-07]
[1734843761541,0.09104509,96160.0,96151.0,8.56e-05]
[1734843761748,0.208002,96153.0,96152.0,0.1013084]
[1734843762152,0.29904709,96153.0,96152.0,0.1013084]
[1734843762680,0.30676314,96153.0,96152.0,0.1013084]
[1734843763876,0.09876114,96153.0,96152.0,0.1063084]
[1734843764089,0.09876114,96153.0,96152.0,0.1093084]
[1734843764235,0.09876114,96153.0,96152.0,0.1043084]
[1734843764634,0.09876114,96153.0,96152.0,0.1053084]
[1734843765439,0.09576114,96153.0,96152.0,0.1053084]
[1734843766058,0.08804509,96155.0,96152.0,0.1053084]
[1734843766256,0.1,96184.0,96152.0,0.1053084]
[1734843766257,0.00771605,96176.0,96162.0,0.207981]
[1734843766483,0.08804509,96169.0,96163.0,0.1243084]
[1734843766692,0.08804509,96169.0,96165.0,0.023]
[1734843766840,0.08804509,96169.0,96166.0,0.1013084]
[1734843767049,0.08804509,96169.0,96166.0,0.3092794]
[1734843767647,0.08804509,96172.0,96166.0,0.5172524]
[1734843767920,0.08804509,96169.0,96166.0,0.1013084]
[1734843768115,0.08804509,96169.0,96166.0,0.1023084]
[1734843768702,0.08804509,96169.0,96166.0,0.310367]
[1734843769504,0.08804509,96172.0,96166.0,0.309367]
[1734843769711,0.09576114,96173.0,96166.0,0.314367]
[1734843769919,0.08804509,96174.0,96172.0,0.20796]
[1734843770299,0.08804509,96174.0,96166.0,0.106394]
[1734843770300,0.08804509,96174.0,96173.0,0.1013084]
[1734843771454,0.09576114,96174.0,96173.0,0.1013084]
[1734843771656,0.08804509,96167.0,96166.0,8.56e-05]
[1734843771887,0.08804509,96167.0,96166.0,0.101394]
[1734843773428,0.08804509,96167.0,96166.0,0.105394]
[1734843773629,0.08804509,96167.0,96166.0,0.106394]
[1734843774062,0.207957,96174.0,96166.0,0.105394]
[1734843774063,0.09576114,96174.0,96166.0,0.105394]
[1734843774216,0.08804509,96167.0,96166.0,0.0230856]
[1734843774394,0.08804509,96170.0,96166.0,0.128394]
[1734843774596,0.08804509,96170.0,96167.0,0.1013084]
[1734843774841,0.08804509,96170.0,96168.0,0.207969]
[1734843775017,0.08804509,96170.0,96169.0,0.1013084]
[1734843775221,0.09576114,96174.0,96169.0,0.1013084]
[1734843775606,0.08804509,96178.0,96169.0,0.1013084]
[1734843775808,0.00771605,96179.0,96170.0,0.023]
[1734843776006,0.00771605,96179.0,96173.0,0.207957]
[1734843776210,0.00771605,96179.0,96175.0,0.207954]
[1734843776327,0.00771605,96170.0,96166.0,8.56e-05]
[1734843776534,0.00771605,96170.0,96169.0,0.002]
[1734843776832,0.08804509,96178.0,96170.0,0.023]
[1734843777055,0.00771605,96186.0,96181.0,0.207941]
[1734843777260,0.08804509,96188.0,96183.0,0.415872]
[1734843777464,0.08804509,96190.0,96185.0,0.207932]
[1734843777659,0.08804509,96191.0,96190.0,0.207919]
[1734843777926,0.00771605,96196.0,96190.0,0.3092274]
[1734843778146,0.08804509,96191.0,96190.0,0.207919]
[1734843778342,0.08804509,96191.0,96184.0,0.023]
[1734843778547,0.08804509,96188.0,96185.0,0.415864]
[1734843778876,0.08804509,96188.0,96187.0,0.230928]
[1734843779000,0.08804509,96188.0,96187.0,0.3322364]
[1734843779404,0.08804509,96188.0,96187.0,0.1243084]
[1734843780161,0.207963,96171.0,96170.0,0.01036204]
[1734843780372,0.09576114,96167.0,96166.0,0.00022187]
[1734843780583,0.11618133,96167.0,96166.0,0.00022187]
[1734843781831,0.26618133,96167.0,96166.0,0.00022187]
[1734843782046,0.3129813,96167.0,96166.0,0.00022187]
[1734843782266,0.5908813,96167.0,96166.0,0.00022187]
[1734843782468,0.6921897,96167.0,96166.0,0.00322187]
[1734843782890,0.38166014,96154.0,96153.0,8.57e-05]
[1734843783689,0.4007803,96154.0,96153.0,8.57e-05]
[1734843785105,0.4017803,96154.0,96153.0,8.57e-05]
[1734843785509,0.4007803,96154.0,96153.0,8.57e-05]
[1734843786098,0.4037803,96154.0,96153.0,8.57e-05]
[1734843786307,0.39606425,96154.0,96153.0,8.57e-05]
[1734843786511,0.3288803,96154.0,96153.0,8.57e-05]
[1734843786745,0.3258803,96154.0,96153.0,8.57e-05]
[1734843787608,0.3298803,96154.0,96153.0,8.57e-05]
[1734843787820,0.19576114,96145.0,96144.0,3.5e-07]
[1734843788025,0.63171414,96129.0,96128.0,8.57e-05]
[1734843788293,0.53171414,96129.0,96128.0,8.57e-05]
[1734843788501,0.4008343,96129.0,96128.0,8.57e-05]
[1734843789491,0.40095916,96129.0,96128.0,8.57e-05]
[1734843790048,0.40695916,96129.0,96128.0,8.57e-05]
[1734843790342,0.40295916,96129.0,96128.0,8.57e-05]
[1734843790483,0.40295916,96129.0,96128.0,0.0010857]
[1734843790932,0.40095916,96129.0,96128.0,8.57e-05]
[1734843792115,0.40295916,96129.0,96128.0,8.57e-05]
[1734843792460,0.40695916,96129.0,96128.0,8.57e-05]
[1734843795034,0.32905916,96129.0,96128.0,8.57e-05]
[1734843795255,0.11329011,96129.0,96128.0,8.57e-05]
[1734843795601,0.09416995,96129.0,96128.0,8.57e-05]
[1734843795823,0.101886,96129.0,96128.0,8.57e-05]
[1734843796072,0.10118644,96129.0,96128.0,8.57e-05]
[1734843796273,0.095886,96129.0,96128.0,0.1013941]
[1734843796473,0.097886,96129.0,96128.0,0.1013941]
[1734843796794,0.096886,96129.0,96128.0,0.1013941]
[1734843796996,0.097886,96129.0,96128.0,0.1013941]
[1734843797637,0.096886,96129.0,96128.0,0.1013941]
[1734843798207,0.097886,96129.0,96128.0,8.57e-05]
[1734843798399,0.09918655,96129.0,96128.0,8.57e-05]
[1734843798614,0.09818655,96129.0,96128.0,8.57e-05]
[1734843798761,0.09918655,96129.0,96128.0,8.57e-05]
[1734843799186,0.09818655,96129.0,96128.0,8.57e-05]
[1734843799389,0.09718655,96129.0,96128.0,8.57e-05]
[1734843799619,0.09918655,96129.0,96128.0,8.57e-05]
[1734843799802,0.09818655,96129.0,96128.0,8.57e-05]
[1734843800163,0.09918655,96129.0,96128.0,8.57e-05]
[1734843801306,0.09818655,96129.0,96128.0,8.57e-05]
[1734843801511,0.09918655,96129.0,96128.0,8.57e-05]
[1734843802283,0.09818655,96129.0,96128.0,8.57e-05]
[1734843802779,0.09718655,96129.0,96128.0,8.57e-05]
[1734843802975,0.09918655,96129.0,96128.0,8.57e-05]
[1734843803400,0.23873368,96129.0,96128.0,8.57e-05]
[1734843803615,0.23843307,96129.0,96128.0,8.57e-05]
[1734843804027,0.23743307,96129.0,96128.0,8.57e-05]
[1734843804227,0.19203307,96129.0,96128.0,8.57e-05]
[1734843804441,0.19433371,96129.0,96128.0,8.57e-05]
[1734843804868,0.19333371,96129.0,96128.0,8.57e-05]
[1734843805076,0.11723371,96129.0,96128.0,8.57e-05]
[1734843805501,0.11823371,96129.0,96128.0,8.57e-05]
[1734843805707,0.11823371,96129.0,96102.0,0.00265796]
[1734843805912,0.29612009,96119.0,96102.0,0.00265796]
[1734843806490,0.31516716,96119.0,96102.0,0.00265796]
[1734843806652,0.32288321,96119.0,96102.0,0.00265796]
[1734843807099,0.32288321,96119.0,96118.0,0.0040856]
[1734843807706,0.10709216,96119.0,96118.0,0.105394]
[1734843808082,0.08804509,96119.0,96118.0,0.105394]
[1734843808289,0.08804509,96119.0,96118.0,0.106394]
[1734843808538,0.09576114,96119.0,96118.0,0.0050856]
[1734843809291,0.09576114,96119.0,96118.0,8.56e-05]
[1734843810065,0.09576114,96119.0,96118.0,0.0020856]
[1734843810286,0.09576114,96119.0,96118.0,8.56e-05]
[1734843810570,0.11480821,96119.0,96118.0,8.56e-05]
[1734843810775,0.11480821,96119.0,96118.0,0.0020856]
[1734843811128,0.11480821,96119.0,96118.0,0.103394]
[1734843811129,0.10709216,96119.0,96118.0,0.103394]
[1734843811348,0.10709216,96119.0,96118.0,0.102394]
[1734843811927,0.10709216,96119.0,96118.0,0.101394]
[1734843812127,0.10709216,96119.0,96118.0,0.102394]
[1734843812328,0.10709216,96119.0,96118.0,0.101394]
[1734843812538,0.08804509,96119.0,96118.0,0.101394]
[1734843812862,0.10709216,96119.0,96118.0,0.102394]
[1734843816482,0.10709216,96119.0,96118.0,0.101394]
[1734843816709,0.10709216,96119.0,96118.0,0.102394]
[1734843817879,0.10709216,96119.0,96118.0,0.101394]
[1734843818180,0.10709216,96119.0,96118.0,0.102394]
[1734843818507,0.10709216,96119.0,96118.0,0.101394]
[1734843818716,0.10709216,96119.0,96118.0,0.102394]
[1734843822464,0.11610871,96119.0,96118.0,0.0010856]
[1734843822675,0.19250879,96119.0,96118.0,0.0010856]
[1734843823284,0.11610879,96119.0,96118.0,0.0010856]
[1734843825700,0.53771719,96119.0,96118.0,0.0010856]
[1734843825900,0.38850821,96119.0,96118.0,0.0010856]
[1734843826318,0.23850821,96119.0,96118.0,0.0010856]
[1734843826524,0.19120821,96119.0,96118.0,0.0010856]
[1734843826725,0.19250889,96119.0,96118.0,0.0010856]
[1734843826930,0.19350889,96119.0,96118.0,0.0010856]
[1734843827141,0.08804509,96116.0,96102.0,0.00265796]
[1734843827351,0.08934579,96116.0,96102.0,0.00265796]
[1734843827756,0.10839286,96116.0,96102.0,0.00265796]
[1734843828571,0.10939286,96116.0,96102.0,0.00265796]
[1734843829350,0.11810891,96116.0,96102.0,0.00265796]
[1734843834135,0.11680821,96116.0,96102.0,0.00265796]
[1734843834784,0.11580821,96116.0,96102.0,0.00265796]
[1734843835688,0.1161088,96116.0,96102.0,0.00265796]
[1734843836055,0.1171088,96116.0,96102.0,0.00265796]
[1734843836428,0.1161088,96116.0,96102.0,0.00265796]
[1734843838307,0.1171088,96116.0,96102.0,0.00265796]
[1734843839172,0.1181088,96116.0,96102.0,0.00265796]
[1734843839603,0.11039275,96116.0,96102.0,0.00265796]
[1734843839804,0.11680821,96116.0,96102.0,0.00265796]
[1734843840010,0.11810885,96116.0,96102.0,0.00265796]
[1734843841005,0.11710885,96116.0,96102.0,0.00265796]
[1734843841436,0.10909216,96116.0,96102.0,0.00265796]
[1734843841800,0.11580821,96116.0,96102.0,0.00265796]
[1734843842114,0.02104707,96116.0,96107.0,0.0463]
[1734843842315,0.11680821,96116.0,96107.0,0.0463]
[1734843842731,0.11580821,96116.0,96107.0,0.0463]
[1734843843094,0.02004707,96116.0,96107.0,0.0463]
[1734843843700,0.10809216,96116.0,96107.0,0.0463]
[1734843843928,0.10709216,96116.0,96107.0,0.0463]
[1734843844057,0.10809216,96116.0,96107.0,0.0463]
[1734843844259,0.01904707,96116.0,96107.0,0.0463]
[1734843844474,0.02676312,96116.0,96115.0,0.12745466]
[1734843844675,0.01904707,96116.0,96115.0,0.12945466]
[1734843848623,0.01904707,96118.0,96116.0,0.208081]
[1734843848863,0.01904707,96118.0,96117.0,0.1013084]
[1734843849301,0.0001714,96119.0,96117.0,0.1013084]
[1734843849498,0.0001714,96119.0,96118.0,0.208077]
[1734843849667,0.0001714,96119.0,96118.0,0.5414854]
[1734843849868,0.0001714,96119.0,96118.0,0.5877854]
[1734843850308,0.0001714,96119.0,96118.0,0.83209112]
[1734843850660,0.09185371,96136.0,96135.0,0.20804]
[1734843850879,0.30815069,96159.0,96150.0,0.208008]
[1734843851084,0.30815069,96159.0,96150.0,0.5877164]
[1734843851323,0.30815069,96159.0,96150.0,0.59967131]
[1734843851502,0.09195093,96160.0,96151.0,0.23235081]
[1734843851710,0.09195093,96160.0,96156.0,0.15]
[1734843851927,0.09195093,96160.0,96159.0,0.48365921]
[1734843852130,0.09211497,96160.0,96159.0,0.48365921]
[1734843853375,0.00016404,96160.0,96159.0,0.33565921]
[1734843854401,0.00016404,96160.0,96159.0,0.34065921]
[1734843854784,0.00016404,96160.0,96159.0,0.33365921]
[1734843855025,0.00116404,96160.0,96159.0,0.1103084]
[1734843855246,0.00116404,96160.0,96159.0,0.1123084]
[1734843855649,0.00116404,96160.0,96159.0,0.1103084]
[1734843856066,0.00888009,96160.0,96159.0,0.1123084]
[1734843856276,0.00788009,96160.0,96159.0,0.1033084]
[1734843856476,0.00788009,96160.0,96159.0,0.1083084]
[1734843856681,0.00788009,96160.0,96159.0,0.1013084]
[1734843857102,0.00788009,96160.0,96159.0,0.1043084]
[1734843858054,0.00788009,96160.0,96159.0,0.1053084]
[1734843860121,0.00016404,96160.0,96159.0,0.1053084]
[1734843860320,0.00016404,96160.0,96159.0,0.1023084]
[1734843860552,0.00016404,96160.0,96159.0,0.1053084]
[1734843860948,0.00016404,96160.0,96159.0,0.2513084]
[1734843861156,0.00016404,96160.0,96159.0,0.2553084]
[1734843861768,0.00016404,96160.0,96159.0,0.56745921]
[1734843861995,0.00016404,96160.0,96159.0,0.56945921]
[1734843862353,0.00016404,96160.0,96159.0,0.56645921]
[1734843862582,0.00016404,96160.0,96159.0,0.57245921]
[1734843862793,0.00033544,96160.0,96159.0,0.48965921]
[1734843862996,0.00033544,96160.0,96159.0,0.48365921]
[1734843863201,0.00033544,96160.0,96159.0,0.48765921]
[1734843863561,0.00033544,96160.0,96159.0,0.49823169]
[1734843863763,0.00033544,96160.0,96159.0,0.33765921]
[1734843863975,0.00033544,96160.0,96159.0,0.33365921]
[1734843864178,0.00033544,96160.0,96159.0,0.34265921]
[1734843864420,0.00133544,96160.0,96159.0,0.34265921]
[1734843864575,0.00133544,96160.0,96159.0,0.34165921]
[1734843864979,0.00905149,96160.0,96159.0,0.01]
[1734843865213,0.09839659,96160.0,96159.0,0.01]
[1734843865419,0.09739659,96160.0,96159.0,0.002]
[1734843865634,0.00771605,96153.0,96144.0,0.208021]
[1734843865844,0.00771605,96153.0,96145.0,0.1013084]
[1734843866246,0.00130001,96156.0,96145.0,0.1013084]
[1734843866467,0.09576114,96157.0,96145.0,0.1013084]
[1734843866679,0.00771605,96153.0,96145.0,0.1013084]
[1734843866900,0.00771605,96154.0,96145.0,0.1013084]
[1734843867343,0.00901606,96156.0,96145.0,0.1043084]
[1734843867569,0.00771605,96153.0,96145.0,0.1043084]
[1734843867859,0.08804509,96157.0,96145.0,0.1043084]
[1734843868093,0.00033544,96160.0,96152.0,0.208002]
[1734843868318,0.00033544,96160.0,96154.0,0.207999]
[1734843868517,0.00033544,96160.0,96155.0,0.1013084]
[1734843869265,0.08804509,96158.0,96155.0,0.1013084]
[1734843869613,0.30375214,96158.0,96155.0,0.1013084]
[1734843869793,0.00033544,96160.0,96145.0,0.001]
[1734843869794,0.00771605,96150.0,96145.0,0.001]
[1734843870098,0.00771605,96147.0,96146.0,0.1013084]
[1734843870970,0.00771605,96142.0,96141.0,8.57e-05]
[1734843871171,0.09576114,96142.0,96141.0,0.1013941]
[1734843872139,0.09576114,96142.0,96141.0,8.57e-05]
[1734843872334,0.09706149,96142.0,96141.0,8.57e-05]
[1734843872574,0.08934544,96142.0,96141.0,8.57e-05]
[1734843872783,0.09706149,96142.0,96141.0,8.57e-05]
[1734843873149,0.09706149,96142.0,96141.0,0.0040857]
[1734843873420,0.09706149,96142.0,96141.0,8.57e-05]
[1734843873623,0.09706149,96142.0,96141.0,0.0010857]
[1734843873853,0.09706149,96142.0,96141.0,0.0030857]
[1734843874061,0.09706149,96142.0,96141.0,8.57e-05]
[1734843874263,0.09706149,96142.0,96141.0,0.0020857]
[1734843874952,0.59336989,96142.0,96141.0,0.0020857]
[1734843875241,0.37907928,96142.0,96141.0,0.0020857]
[1734843875467,0.37907928,96142.0,96141.0,8.57e-05]
[1734843875468,0.38679533,96142.0,96141.0,8.57e-05]
[1734843875866,0.38679533,96142.0,96141.0,0.0020857]
[1734843876084,0.38679533,96142.0,96141.0,8.57e-05]
[1734843876446,0.39079533,96142.0,96141.0,8.57e-05]
[1734843876875,0.39279533,96142.0,96141.0,8.57e-05]
[1734843880317,0.49279533,96142.0,96141.0,7e-07]
[1734843880547,0.59410373,96142.0,96141.0,7e-07]
[1734843881367,0.59410373,96142.0,96115.0,0.02614626]
[1734843881368,0.37894214,96116.0,96115.0,0.02614626]
[1734843881850,0.39797633,96116.0,96115.0,0.02614626]
[1734843882787,0.37894214,96116.0,96115.0,0.02969071]
[1734843882963,0.37994214,96116.0,96115.0,0.03569071]
[1734843884645,0.001,96116.0,96115.0,0.18289911]
[1734843885469,0.001,96116.0,96115.0,0.56524992]
[1734843885628,0.08804509,96144.0,96134.0,0.208041]
[1734843885832,0.00771605,96143.0,96135.0,0.1013084]
[1734843886249,0.00762938,96143.0,96136.0,0.208038]
[1734843886457,0.09567447,96143.0,96137.0,0.1013084]
[1734843886884,0.001,96144.0,96137.0,0.1013084]
[1734843887099,0.001,96144.0,96138.0,0.208033]
[1734843887256,0.00762938,96146.0,96139.0,0.1013084]
[1734843888552,0.00762938,96146.0,96139.0,0.1033084]
[1734843889262,0.208019,96145.0,96139.0,0.1033084]
[1734843889459,0.00762938,96140.0,96139.0,0.1033084]
[1734843889730,0.09567447,96140.0,96139.0,0.1033084]
[1734843889883,0.09567447,96140.0,96139.0,0.002]
[1734843890471,0.09567447,96140.0,96139.0,0.1033084]
[1734843890736,0.00762938,96140.0,96139.0,0.1033084]
[1734843891164,0.00762938,96146.0,96139.0,0.1033084]
[1734843891398,0.00762938,96146.0,96140.0,0.1013084]
[1734843891399,0.08804509,96143.0,96140.0,0.1013084]
[1734843893325,0.00762938,96146.0,96140.0,0.1013084]
[1734843893791,0.00762938,96146.0,96141.0,0.208027]
[1734843894033,0.00780078,96147.0,96142.0,0.1013084]
[1734843895182,0.00780078,96147.0,96143.0,0.208023]
[1734843895396,0.00780078,96147.0,96144.0,0.1013084]
[1734843895847,0.09584587,96147.0,96144.0,0.1013084]
[1734843896759,0.09584587,96147.0,96144.0,0.1033084]
[1734843897188,0.30386187,96147.0,96144.0,0.1033084]
[1734843897391,0.30386187,96147.0,96144.0,0.002]
[1734843897392,0.09567447,96145.0,96144.0,0.002]
[1734843897613,0.09697468,96145.0,96144.0,0.002]
[1734843898646,0.08804509,96137.0,96128.0,0.23235081]
[1734843898845,0.08804509,96137.0,96129.0,0.1013084]